[Event "Titled Tuesday Blitz November 2 2021"]
[White "Rasulov, Vugar"]
[Black "Skatchkov, Valery"]
[WhiteFideId "13402390"]
[BlackFideId "24195812"]
[WhiteElo "2560"]
[BlackElo "2195"]
[Result "1-0"]
[Round "08"]
[TimeControl "180+1"]
[Date "2021.11.02"]
[WhiteClock "0:01:13"]
[BlackClock "0:00:02"]

1. d4 {[%clk 0:03:00]}  Nf6 {[%clk 0:02:58]} 2. c4 {[%clk 0:03:01]}  e6 {[%clk 0:02:58]} 3. Nf3 {[%clk 0:03:01]}  b6 {[%clk 0:02:57]} 4. g3 {[%clk 0:03:01]}  Bb7 {[%clk 0:02:56]} 5. Bg2 {[%clk 0:03:01]}  Be7 {[%clk 0:02:57]} 6. O-O {[%clk 0:03:02]}  O-O {[%clk 0:02:57]} 7. Re1 {[%clk 0:03:02]}  Na6 {[%clk 0:02:57]} 8. a3 {[%clk 0:02:57]}  c5 {[%clk 0:02:38]} 9. d5 {[%clk 0:02:56]}  exd5 {[%clk 0:02:36]} 10. Nh4 {[%clk 0:02:56]}  Ne4 {[%clk 0:01:58]} 11. cxd5 {[%clk 0:02:56]}  Bxh4 {[%clk 0:01:58]} 12. Bxe4 {[%clk 0:02:56]}  Bf6 {[%clk 0:01:59]} 13. Nc3 {[%clk 0:02:55]}  d6 {[%clk 0:01:52]} 14. Qc2 {[%clk 0:02:55]}  g6 {[%clk 0:01:51]} 15. Bg2 {[%clk 0:02:52]}  c4 {[%clk 0:01:51]} 16. Ne4 {[%clk 0:02:45]}  Rc8 {[%clk 0:01:42]} 17. Bf4 {[%clk 0:02:44]}  Be7 {[%clk 0:01:35]} 18. Bh6 {[%clk 0:02:43]}  Re8 {[%clk 0:01:25]} 19. Qc3 {[%clk 0:02:43]}  f6 {[%clk 0:01:18]} 20. Bh3 {[%clk 0:02:33]}  Bxd5 {[%clk 0:00:53]} 21. Bxc8 {[%clk 0:02:32]}  Nc7 {[%clk 0:00:53]} 22. Bh3 {[%clk 0:02:12]}  Bxe4 {[%clk 0:00:53]} 23. Qxc4+ {[%clk 0:02:13]}  d5 {[%clk 0:00:53]} 24. Qc6 {[%clk 0:02:12]}  g5 {[%clk 0:00:43]} 25. Rad1 {[%clk 0:02:07]}  Kf7 {[%clk 0:00:31]} 26. f3 {[%clk 0:01:57]}  Bc5+ {[%clk 0:00:31]} 27. Kh1 {[%clk 0:01:55]}  Bc2 {[%clk 0:00:11]} 28. Rd2 {[%clk 0:01:47]}  Bg6 {[%clk 0:00:12]} 29. e4 {[%clk 0:01:47]}  d4 {[%clk 0:00:11]} 30. b4 {[%clk 0:01:41]}  Be7 {[%clk 0:00:09]} 31. Red1 {[%clk 0:01:40]}  Bh5 {[%clk 0:00:07]} 32. g4 {[%clk 0:01:32]}  Bg6 {[%clk 0:00:06]} 33. Rxd4 {[%clk 0:01:33]}  Qb8 {[%clk 0:00:05]} 34. Bf1 {[%clk 0:01:30]}  b5 {[%clk 0:00:02]} 35. Rd7 {[%clk 0:01:30]}  Ne6 {[%clk 0:00:02]} 36. Bxb5 {[%clk 0:01:24]}  Qf4 {[%clk 0:00:01]} 37. Qxe6+ {[%clk 0:01:14]}  Kxe6 {[%clk 0:00:01]} 38. Bc4+ {[%clk 0:01:15]}  Ke5 {[%clk 0:00:01]} 39. R7d5+ {[%clk 0:01:15]}  Ke6 {[%clk 0:00:02]} 40. Rxg5# {[%clk 0:01:13]} 1-0


[Site "https://www.chess.com"]

[Event "Titled Tuesday Blitz November 2 2021"]
[White "Rodchenkov, Vitaly"]
[Black "Borsuk, Konstantin"]
[WhiteFideId "4152964"]
[BlackFideId "14113406"]
[WhiteElo "2337"]
[BlackElo "2397"]
[Result "1-0"]
[Round "08"]
[TimeControl "180+1"]
[Date "2021.11.02"]
[WhiteClock "0:00:53"]
[BlackClock "0:00:34"]

1. Nf3 {[%clk 0:03:00]}  c5 {[%clk 0:02:58]} 2. b3 {[%clk 0:03:00]}  Nf6 {[%clk 0:02:57]} 3. Bb2 {[%clk 0:03:00]}  g6 {[%clk 0:02:57]} 4. g3 {[%clk 0:02:50]}  Bg7 {[%clk 0:02:57]} 5. c4 {[%clk 0:02:50]}  O-O {[%clk 0:02:56]} 6. Bg2 {[%clk 0:02:51]}  a6 {[%clk 0:02:54]} 7. O-O {[%clk 0:02:50]}  b5 {[%clk 0:02:54]} 8. d3 {[%clk 0:02:49]}  Qb6 {[%clk 0:02:51]} 9. Nc3 {[%clk 0:02:44]}  e6 {[%clk 0:02:47]} 10. Qc2 {[%clk 0:02:36]}  Nc6 {[%clk 0:02:46]} 11. a3 {[%clk 0:02:33]}  Rb8 {[%clk 0:02:43]} 12. Rab1 {[%clk 0:02:27]}  d6 {[%clk 0:02:37]} 13. Rfd1 {[%clk 0:02:20]}  Bb7 {[%clk 0:02:35]} 14. Ne4 {[%clk 0:02:17]}  e5 {[%clk 0:02:28]} 15. Nfg5 {[%clk 0:02:09]}  Nxe4 {[%clk 0:02:25]} 16. Nxe4 {[%clk 0:02:08]}  Nd4 {[%clk 0:02:24]} 17. Bxd4 {[%clk 0:02:05]}  exd4 {[%clk 0:02:24]} 18. b4 {[%clk 0:02:03]}  cxb4 {[%clk 0:02:08]} 19. Rxb4 {[%clk 0:02:02]}  d5 {[%clk 0:02:05]} 20. cxd5 {[%clk 0:01:51]}  Bxd5 {[%clk 0:02:03]} 21. Nf6+ {[%clk 0:01:46]}  Bxf6 {[%clk 0:02:03]} 22. Bxd5 {[%clk 0:01:47]}  Rfc8 {[%clk 0:01:56]} 23. Qb2 {[%clk 0:01:46]}  Rc3 {[%clk 0:01:55]} 24. a4 {[%clk 0:01:43]}  Qc5 {[%clk 0:01:41]} 25. Bf3 {[%clk 0:01:41]}  Be7 {[%clk 0:01:37]} 26. Rb3 {[%clk 0:01:40]}  b4 {[%clk 0:01:34]} 27. Rxc3 {[%clk 0:01:33]}  Qxc3 {[%clk 0:01:19]} 28. Rb1 {[%clk 0:01:20]}  a5 {[%clk 0:01:06]} 29. Bd5 {[%clk 0:01:19]}  Kg7 {[%clk 0:01:02]} 30. Qb3 {[%clk 0:01:18]}  f5 {[%clk 0:00:58]} 31. Kg2 {[%clk 0:01:17]}  Bg5 {[%clk 0:00:53]} 32. Bc4 {[%clk 0:01:15]}  Re8 {[%clk 0:00:51]} 33. Kf1 {[%clk 0:01:09]}  h5 {[%clk 0:00:48]} 34. h4 {[%clk 0:01:09]}  Bd2 {[%clk 0:00:46]} 35. Bb5 {[%clk 0:01:06]}  Qxb3 {[%clk 0:00:34]} 36. Rxb3 {[%clk 0:01:05]}  f4 {[%clk 0:00:34]} 37. Bxe8 {[%clk 0:00:53]} 1-0


[Site "https://www.chess.com"]

[Event "Titled Tuesday Blitz November 2 2021"]
[White "Sanchez Alvares, Kelvin Antonio"]
[Black "Timofeev, Artyom"]
[WhiteFideId "3906680"]
[BlackFideId "4140419"]
[WhiteElo "2193"]
[BlackElo "2591"]
[Result "0-1"]
[Round "08"]
[TimeControl "180+1"]
[Date "2021.11.02"]
[WhiteClock "0:00:12"]
[BlackClock "0:00:32"]

1. d4 {[%clk 0:03:00]}  Nf6 {[%clk 0:02:59]} 2. c4 {[%clk 0:02:54]}  b6 {[%clk 0:02:59]} 3. Nc3 {[%clk 0:02:52]}  Bb7 {[%clk 0:02:59]} 4. f3 {[%clk 0:02:53]}  d5 {[%clk 0:02:55]} 5. cxd5 {[%clk 0:02:52]}  Nxd5 {[%clk 0:02:55]} 6. e4 {[%clk 0:02:52]}  Nxc3 {[%clk 0:02:54]} 7. bxc3 {[%clk 0:02:49]}  e6 {[%clk 0:02:54]} 8. Bb5+ {[%clk 0:02:48]}  c6 {[%clk 0:02:53]} 9. Bd3 {[%clk 0:02:45]}  Be7 {[%clk 0:02:53]} 10. Ne2 {[%clk 0:02:45]}  O-O {[%clk 0:02:52]} 11. O-O {[%clk 0:02:45]}  c5 {[%clk 0:02:52]} 12. Be3 {[%clk 0:02:44]}  Nd7 {[%clk 0:02:52]} 13. Qd2 {[%clk 0:02:44]}  Rc8 {[%clk 0:02:50]} 14. a4 {[%clk 0:02:44]}  Qc7 {[%clk 0:02:44]} 15. Rfc1 {[%clk 0:02:35]}  e5 {[%clk 0:02:42]} 16. Bb5 {[%clk 0:02:25]}  Rfd8 {[%clk 0:02:38]} 17. d5 {[%clk 0:02:21]}  c4 {[%clk 0:02:37]} 18. a5 {[%clk 0:02:16]}  Nc5 {[%clk 0:02:27]} 19. axb6 {[%clk 0:02:02]}  axb6 {[%clk 0:02:27]} 20. Bxc4 {[%clk 0:01:53]}  Nxe4 {[%clk 0:02:21]} 21. fxe4 {[%clk 0:01:53]}  Qxc4 {[%clk 0:02:21]} 22. Ng3 {[%clk 0:01:53]}  b5 {[%clk 0:02:08]} 23. Ra7 {[%clk 0:01:46]}  Rb8 {[%clk 0:02:08]} 24. Qe2 {[%clk 0:01:43]}  Qxe2 {[%clk 0:02:01]} 25. Nxe2 {[%clk 0:01:42]}  Bd6 {[%clk 0:02:02]} 26. c4 {[%clk 0:01:36]}  bxc4 {[%clk 0:02:01]} 27. Rxc4 {[%clk 0:01:35]}  Rdc8 {[%clk 0:01:52]} 28. Rxc8+ {[%clk 0:01:30]}  Bxc8 {[%clk 0:01:52]} 29. Kf2 {[%clk 0:01:22]}  Kf8 {[%clk 0:01:50]} 30. Nc1 {[%clk 0:01:13]}  f5 {[%clk 0:01:45]} 31. Nd3 {[%clk 0:01:09]}  fxe4 {[%clk 0:01:35]} 32. Bc5 {[%clk 0:01:07]}  Rb2+ {[%clk 0:01:28]} 33. Ke3 {[%clk 0:00:57]}  exd3 {[%clk 0:01:23]} 34. Bxd6+ {[%clk 0:00:57]}  Ke8 {[%clk 0:01:24]} 35. Rxg7 {[%clk 0:00:43]}  d2 {[%clk 0:01:18]} 36. Ke2 {[%clk 0:00:42]}  Ba6+ {[%clk 0:00:59]} 37. Kd1 {[%clk 0:00:40]}  Bc4 {[%clk 0:00:58]} 38. Rg8+ {[%clk 0:00:29]}  Kd7 {[%clk 0:00:54]} 39. Rb8 {[%clk 0:00:29]}  Bb3+ {[%clk 0:00:41]} 40. Rxb3 {[%clk 0:00:28]}  Rxb3 {[%clk 0:00:41]} 41. Bxe5 {[%clk 0:00:28]}  Rb5 {[%clk 0:00:38]} 42. Bf4 {[%clk 0:00:26]}  Rxd5 {[%clk 0:00:38]} 43. Bxd2 {[%clk 0:00:26]}  Ke6 {[%clk 0:00:39]} 44. Ke2 {[%clk 0:00:24]}  Kf5 {[%clk 0:00:39]} 45. Be3 {[%clk 0:00:21]}  Ke4 {[%clk 0:00:39]} 46. Bf2 {[%clk 0:00:21]}  Ra5 {[%clk 0:00:39]} 47. Be1 {[%clk 0:00:20]}  Ra2+ {[%clk 0:00:39]} 48. Bd2 {[%clk 0:00:20]}  h5 {[%clk 0:00:34]} 49. g3 {[%clk 0:00:20]}  Kd4 {[%clk 0:00:33]} 50. h3 {[%clk 0:00:20]}  Ke4 {[%clk 0:00:33]} 51. g4 {[%clk 0:00:20]}  h4 {[%clk 0:00:33]} 52. g5 {[%clk 0:00:20]}  Kf5 {[%clk 0:00:33]} 53. Kd1 {[%clk 0:00:12]}  Ra3 {[%clk 0:00:32]} 0-1


[Site "https://www.chess.com"]

[Event "Titled Tuesday Blitz November 2 2021"]
[White "Urazayev, Arystanbek"]
[Black "Martinez Alcantara, Jose Eduardo"]
[WhiteFideId "13709810"]
[BlackFideId "3805662"]
[WhiteElo "2321"]
[BlackElo "2690"]
[Result "1/2-1/2"]
[Round "08"]
[TimeControl "180+1"]
[Date "2021.11.02"]
[WhiteClock "0:01:57"]
[BlackClock "0:00:46"]

1. e4 {[%clk 0:03:00]}  c5 {[%clk 0:02:58]} 2. Nf3 {[%clk 0:03:01]}  d6 {[%clk 0:02:59]} 3. d4 {[%clk 0:03:01]}  cxd4 {[%clk 0:02:59]} 4. Nxd4 {[%clk 0:03:01]}  Nf6 {[%clk 0:03:00]} 5. Nc3 {[%clk 0:03:02]}  a6 {[%clk 0:03:01]} 6. Rg1 {[%clk 0:03:02]}  e5 {[%clk 0:02:59]} 7. Nb3 {[%clk 0:03:03]}  h5 {[%clk 0:02:59]} 8. h3 {[%clk 0:03:03]}  Be6 {[%clk 0:02:50]} 9. g4 {[%clk 0:03:03]}  hxg4 {[%clk 0:02:50]} 10. hxg4 {[%clk 0:03:04]}  d5 {[%clk 0:02:48]} 11. exd5 {[%clk 0:03:05]}  Nxd5 {[%clk 0:02:48]} 12. Nxd5 {[%clk 0:03:05]}  Qxd5 {[%clk 0:02:48]} 13. Qxd5 {[%clk 0:03:05]}  Bxd5 {[%clk 0:02:49]} 14. Be3 {[%clk 0:03:06]}  Nc6 {[%clk 0:02:37]} 15. O-O-O {[%clk 0:03:05]}  O-O-O {[%clk 0:02:33]} 16. Bb6 {[%clk 0:03:06]}  Rd7 {[%clk 0:02:28]} 17. a3 {[%clk 0:03:06]}  Be7 {[%clk 0:02:19]} 18. g5 {[%clk 0:03:06]}  Bxb3 {[%clk 0:02:08]} 19. cxb3 {[%clk 0:02:58]}  Rxd1+ {[%clk 0:01:45]} 20. Kxd1 {[%clk 0:02:58]}  Nd4 {[%clk 0:01:45]} 21. Bxd4 {[%clk 0:02:53]}  exd4 {[%clk 0:01:45]} 22. Bc4 {[%clk 0:02:54]}  f6 {[%clk 0:01:39]} 23. Rg4 {[%clk 0:02:38]}  fxg5 {[%clk 0:01:13]} 24. Rxd4 {[%clk 0:02:37]}  Bf6 {[%clk 0:01:07]} 25. Rd2 {[%clk 0:02:32]}  Kc7 {[%clk 0:01:05]} 26. f3 {[%clk 0:02:30]}  Re8 {[%clk 0:01:03]} 27. Kc2 {[%clk 0:02:17]}  b5 {[%clk 0:00:59]} 28. Bf7 {[%clk 0:02:13]}  Re3 {[%clk 0:00:59]} 29. Bh5 {[%clk 0:02:13]}  Re6 {[%clk 0:00:54]} 30. b4 {[%clk 0:02:12]}  Rc6+ {[%clk 0:00:54]} 31. Kb3 {[%clk 0:02:12]}  Re6 {[%clk 0:00:55]} 32. Bg4 {[%clk 0:02:10]}  Re3+ {[%clk 0:00:55]} 33. Ka2 {[%clk 0:02:08]}  Kb6 {[%clk 0:00:54]} 34. Rc2 {[%clk 0:02:08]}  Rd3 {[%clk 0:00:51]} 35. Kb1 {[%clk 0:02:05]}  Rd1+ {[%clk 0:00:51]} 36. Ka2 {[%clk 0:02:04]}  Rd4 {[%clk 0:00:52]} 37. Kb1 {[%clk 0:02:03]}  Rd6 {[%clk 0:00:50]} 38. Ka2 {[%clk 0:02:03]}  Be5 {[%clk 0:00:48]} 39. Re2 {[%clk 0:01:57]}  Bf4 {[%clk 0:00:46]} 40. Re6 {[%clk 0:01:57]} 1/2-1/2


[Site "https://www.chess.com"]

[Event "Titled Tuesday Blitz November 2 2021"]
[White "Wagner, Dennis"]
[Black "Gubajdullin, Alexei"]
[WhiteFideId "24650684"]
[BlackFideId "4141202"]
[WhiteElo "2355"]
[BlackElo "2268"]
[Result "1-0"]
[Round "08"]
[TimeControl "180+1"]
[Date "2021.11.02"]
[WhiteClock "0:00:03"]
[BlackClock "0:00:01"]

1. e4 {[%clk 0:02:59]}  d6 {[%clk 0:02:59]} 2. d4 {[%clk 0:02:58]}  g6 {[%clk 0:02:59]} 3. Nc3 {[%clk 0:02:59]}  Bg7 {[%clk 0:02:58]} 4. Nf3 {[%clk 0:02:58]}  Nf6 {[%clk 0:02:57]} 5. Be3 {[%clk 0:02:58]}  O-O {[%clk 0:02:56]} 6. Qd2 {[%clk 0:02:59]}  Nc6 {[%clk 0:02:54]} 7. O-O-O {[%clk 0:02:54]}  Bg4 {[%clk 0:02:51]} 8. Kb1 {[%clk 0:02:33]}  Bxf3 {[%clk 0:02:48]} 9. gxf3 {[%clk 0:02:33]}  e5 {[%clk 0:02:46]} 10. dxe5 {[%clk 0:02:33]}  dxe5 {[%clk 0:02:41]} 11. Qc1 {[%clk 0:02:31]}  Qe7 {[%clk 0:02:38]} 12. h4 {[%clk 0:02:18]}  Rad8 {[%clk 0:02:27]} 13. Nd5 {[%clk 0:02:07]}  Nxd5 {[%clk 0:02:25]} 14. exd5 {[%clk 0:02:08]}  Nd4 {[%clk 0:02:25]} 15. h5 {[%clk 0:02:09]}  Nxf3 {[%clk 0:02:01]} 16. hxg6 {[%clk 0:01:44]}  fxg6 {[%clk 0:01:58]} 17. d6 {[%clk 0:01:22]}  cxd6 {[%clk 0:01:32]} 18. Bc4+ {[%clk 0:01:21]}  Rf7 {[%clk 0:01:32]} 19. Rh3 {[%clk 0:01:09]}  e4 {[%clk 0:01:12]} 20. Bf4 {[%clk 0:00:41]}  d5 {[%clk 0:01:03]} 21. Rxd5 {[%clk 0:00:39]}  Rc8 {[%clk 0:00:54]} 22. Bb3 {[%clk 0:00:31]}  Kh8 {[%clk 0:00:54]} 23. Qh1 {[%clk 0:00:23]}  Bxb2 {[%clk 0:00:43]} 24. Be3 {[%clk 0:00:10]}  Qf6 {[%clk 0:00:41]} 25. Rd6 {[%clk 0:00:04]}  Qxd6 {[%clk 0:00:36]} 26. Bxf7 {[%clk 0:00:05]}  h5 {[%clk 0:00:29]} 27. Bxg6 {[%clk 0:00:05]}  Qxg6 {[%clk 0:00:24]} 28. Rxh5+ {[%clk 0:00:05]}  Kg8 {[%clk 0:00:24]} 29. Kxb2 {[%clk 0:00:06]}  Qf6+ {[%clk 0:00:13]} 30. Kb1 {[%clk 0:00:06]}  Rd8 {[%clk 0:00:10]} 31. Qg2+ {[%clk 0:00:05]}  Kf8 {[%clk 0:00:07]} 32. Bc5+ {[%clk 0:00:05]}  Ke8 {[%clk 0:00:04]} 33. Qg8+ {[%clk 0:00:04]}  Kd7 {[%clk 0:00:04]} 34. Rd5+ {[%clk 0:00:04]}  Kc8 {[%clk 0:00:03]} 35. Qg4+ {[%clk 0:00:04]}  Kc7 {[%clk 0:00:03]} 36. Qxe4 {[%clk 0:00:02]}  Rxd5 {[%clk 0:00:01]} 37. Qxd5 {[%clk 0:00:03]} 1-0


[Site "https://www.chess.com"]

[Event "Titled Tuesday Blitz November 2 2021"]
[White "Yuan, Qingyu"]
[Black "Ozen, Bahadir"]
[WhiteFideId "8609772"]
[BlackFideId "6337058"]
[WhiteElo "2359"]
[BlackElo "2503"]
[Result "0-1"]
[Round "08"]
[TimeControl "180+1"]
[Date "2021.11.02"]
[WhiteClock "0:00:03"]
[BlackClock "0:00:37"]

1. Nf3 {[%clk 0:03:00]}  d5 {[%clk 0:02:59]} 2. g3 {[%clk 0:03:00]}  c6 {[%clk 0:02:59]} 3. Bg2 {[%clk 0:03:00]}  Bg4 {[%clk 0:02:59]} 4. Ne5 {[%clk 0:03:00]}  Bf5 {[%clk 0:02:57]} 5. O-O {[%clk 0:02:59]}  Nd7 {[%clk 0:02:57]} 6. d4 {[%clk 0:02:54]}  e6 {[%clk 0:02:55]} 7. Bf4 {[%clk 0:02:51]}  Nxe5 {[%clk 0:02:44]} 8. Bxe5 {[%clk 0:02:51]}  Nf6 {[%clk 0:02:44]} 9. Nd2 {[%clk 0:02:49]}  Bd6 {[%clk 0:02:36]} 10. Nf3 {[%clk 0:02:45]}  O-O {[%clk 0:02:33]} 11. c3 {[%clk 0:02:43]}  Bxe5 {[%clk 0:02:30]} 12. Nxe5 {[%clk 0:02:39]}  Qb6 {[%clk 0:02:28]} 13. Qb3 {[%clk 0:02:29]}  Rfd8 {[%clk 0:02:28]} 14. Qa3 {[%clk 0:02:25]}  Nd7 {[%clk 0:02:24]} 15. Nf3 {[%clk 0:02:22]}  Be4 {[%clk 0:02:14]} 16. Rac1 {[%clk 0:02:21]}  c5 {[%clk 0:02:14]} 17. Rfd1 {[%clk 0:02:17]}  Rac8 {[%clk 0:02:12]} 18. b3 {[%clk 0:02:03]}  h6 {[%clk 0:02:08]} 19. e3 {[%clk 0:02:01]}  Rc7 {[%clk 0:02:04]} 20. c4 {[%clk 0:01:53]}  Rdc8 {[%clk 0:01:56]} 21. cxd5 {[%clk 0:01:51]}  Bxd5 {[%clk 0:01:55]} 22. h4 {[%clk 0:01:26]}  a6 {[%clk 0:01:47]} 23. dxc5 {[%clk 0:01:18]}  Nxc5 {[%clk 0:01:46]} 24. Nd4 {[%clk 0:01:15]}  Bxg2 {[%clk 0:01:45]} 25. Kxg2 {[%clk 0:01:16]}  Ne4 {[%clk 0:01:41]} 26. Rxc7 {[%clk 0:01:10]}  Qxc7 {[%clk 0:01:41]} 27. Qb4 {[%clk 0:01:03]}  Nf6 {[%clk 0:01:37]} 28. Rd2 {[%clk 0:01:01]}  Nd5 {[%clk 0:01:34]} 29. Qa3 {[%clk 0:00:59]}  Qc5 {[%clk 0:01:19]} 30. Qb2 {[%clk 0:00:54]}  Qc1 {[%clk 0:01:12]} 31. Ne2 {[%clk 0:00:38]}  Qc6 {[%clk 0:00:58]} 32. Kh2 {[%clk 0:00:35]}  Nf6 {[%clk 0:00:58]} 33. Nd4 {[%clk 0:00:34]}  Qe4 {[%clk 0:00:51]} 34. Rc2 {[%clk 0:00:28]}  Rd8 {[%clk 0:00:49]} 35. Rc4 {[%clk 0:00:23]}  h5 {[%clk 0:00:40]} 36. Kg1 {[%clk 0:00:22]}  e5 {[%clk 0:00:37]} 37. Nf3 {[%clk 0:00:05]}  Qxf3 {[%clk 0:00:35]} 38. Rc1 {[%clk 0:00:04]}  Rd1+ {[%clk 0:00:35]} 39. Rxd1 {[%clk 0:00:04]}  Qxd1+ {[%clk 0:00:36]} 40. Kg2 {[%clk 0:00:05]}  Qd5+ {[%clk 0:00:37]} 41. f3 {[%clk 0:00:05]}  e4 {[%clk 0:00:37]} 42. Qxf6 {[%clk 0:00:04]}  gxf6 {[%clk 0:00:36]} 43. fxe4 {[%clk 0:00:03]}  Qxe4+ {[%clk 0:00:37]} 0-1


[Site "https://www.chess.com"]

[Event "Titled Tuesday Blitz November 2 2021"]
[White "Andreikin, Dmitry"]
[Black "Zhigalko, Sergei"]
[WhiteFideId "4158814"]
[BlackFideId "13502956"]
[WhiteElo "2736"]
[BlackElo "2662"]
[Result "0-1"]
[Round "09"]
[TimeControl "180+1"]
[Date "2021.11.02"]
[WhiteClock "0:00:02"]
[BlackClock "0:00:08"]

1. d4 {[%clk 0:03:00]}  Nf6 {[%clk 0:03:00]} 2. c4 {[%clk 0:03:01]}  e6 {[%clk 0:03:00]} 3. Nf3 {[%clk 0:03:02]}  b6 {[%clk 0:03:00]} 4. a3 {[%clk 0:03:00]}  Ba6 {[%clk 0:02:58]} 5. Qc2 {[%clk 0:02:58]}  Bb7 {[%clk 0:02:58]} 6. Nc3 {[%clk 0:02:54]}  c5 {[%clk 0:02:58]} 7. Bg5 {[%clk 0:02:50]}  Bxf3 {[%clk 0:02:40]} 8. exf3 {[%clk 0:02:50]}  cxd4 {[%clk 0:02:40]} 9. Ne2 {[%clk 0:02:49]}  Nc6 {[%clk 0:02:38]} 10. Rd1 {[%clk 0:02:48]}  h6 {[%clk 0:02:30]} 11. Bh4 {[%clk 0:02:28]}  e5 {[%clk 0:02:30]} 12. f4 {[%clk 0:02:27]}  d6 {[%clk 0:02:26]} 13. g3 {[%clk 0:02:23]}  Be7 {[%clk 0:02:13]} 14. Qa4 {[%clk 0:02:20]}  Rc8 {[%clk 0:02:08]} 15. Bh3 {[%clk 0:02:13]}  Rc7 {[%clk 0:02:08]} 16. O-O {[%clk 0:02:10]}  O-O {[%clk 0:02:07]} 17. Rfe1 {[%clk 0:02:11]}  Nd7 {[%clk 0:01:40]} 18. Bxe7 {[%clk 0:01:53]}  Nxe7 {[%clk 0:01:40]} 19. b4 {[%clk 0:01:46]}  Nf6 {[%clk 0:01:33]} 20. Nc1 {[%clk 0:01:37]}  Rxc4 {[%clk 0:01:14]} 21. fxe5 {[%clk 0:01:38]}  dxe5 {[%clk 0:01:15]} 22. Rxe5 {[%clk 0:01:37]}  Qc7 {[%clk 0:01:11]} 23. Ree1 {[%clk 0:01:34]}  Ned5 {[%clk 0:01:12]} 24. Qb3 {[%clk 0:01:28]}  Nc3 {[%clk 0:01:12]} 25. Rd3 {[%clk 0:01:23]}  a5 {[%clk 0:01:00]} 26. Bf1 {[%clk 0:01:05]}  a4 {[%clk 0:00:52]} 27. Qb2 {[%clk 0:01:04]}  Rd8 {[%clk 0:00:45]} 28. Rd2 {[%clk 0:00:49]}  Rc6 {[%clk 0:00:34]} 29. Bg2 {[%clk 0:00:50]}  Nce4 {[%clk 0:00:31]} 30. Rde2 {[%clk 0:00:35]}  Rc8 {[%clk 0:00:10]} 31. Nd3 {[%clk 0:00:24]}  Rc3 {[%clk 0:00:10]} 32. Rxe4 {[%clk 0:00:18]}  Rxd3 {[%clk 0:00:05]} 33. Rxd4 {[%clk 0:00:18]}  Qc3 {[%clk 0:00:04]} 34. Qxc3 {[%clk 0:00:15]}  Rcxc3 {[%clk 0:00:05]} 35. Rxd3 {[%clk 0:00:12]}  Rxd3 {[%clk 0:00:06]} 36. Ra1 {[%clk 0:00:09]}  Rc3 {[%clk 0:00:06]} 37. h3 {[%clk 0:00:07]}  g5 {[%clk 0:00:04]} 38. Rd1 {[%clk 0:00:07]}  Kg7 {[%clk 0:00:03]} 39. Rd6 {[%clk 0:00:07]}  b5 {[%clk 0:00:02]} 40. Rb6 {[%clk 0:00:07]}  Rxa3 {[%clk 0:00:02]} 41. Rxb5 {[%clk 0:00:07]}  Rb3 {[%clk 0:00:03]} 42. Kh2 {[%clk 0:00:04]}  Rb2 {[%clk 0:00:03]} 43. Ra5 {[%clk 0:00:04]}  Rxb4 {[%clk 0:00:03]} 44. Ra7 {[%clk 0:00:04]}  Rb2 {[%clk 0:00:01]} 45. Kg1 {[%clk 0:00:03]}  Rb1+ {[%clk 0:00:02]} 46. Kh2 {[%clk 0:00:03]}  Rb2 {[%clk 0:00:03]} 47. Kg1 {[%clk 0:00:03]}  Ra2 {[%clk 0:00:03]} 48. Bf1 {[%clk 0:00:03]}  Ra1 {[%clk 0:00:03]} 49. Kg2 {[%clk 0:00:03]}  Ne4 {[%clk 0:00:03]} 50. Bc4 {[%clk 0:00:03]}  Nd6 {[%clk 0:00:04]} 51. Bd5 {[%clk 0:00:03]}  Rd1 {[%clk 0:00:03]} 52. Ba2 {[%clk 0:00:03]}  Rd4 {[%clk 0:00:02]} 53. Rd7 {[%clk 0:00:03]}  Kf6 {[%clk 0:00:01]} 54. Bxf7 {[%clk 0:00:03]}  a3 {[%clk 0:00:01]} 55. Bg8 {[%clk 0:00:03]}  Rd2 {[%clk 0:00:01]} 56. Ra7 {[%clk 0:00:03]}  Ne4 {[%clk 0:00:01]} 57. Ra6+ {[%clk 0:00:03]}  Kg7 {[%clk 0:00:01]} 58. Bc4 {[%clk 0:00:03]}  Rxf2+ {[%clk 0:00:02]} 59. Kg1 {[%clk 0:00:04]}  Rc2 {[%clk 0:00:02]} 60. Bd5 {[%clk 0:00:04]}  Nc3 {[%clk 0:00:02]} 61. Ra7+ {[%clk 0:00:03]}  Kf6 {[%clk 0:00:02]} 62. Ra6+ {[%clk 0:00:03]}  Ke5 {[%clk 0:00:02]} 63. Bb3 {[%clk 0:00:04]}  Rc1+ {[%clk 0:00:02]} 64. Kf2 {[%clk 0:00:04]}  a2 {[%clk 0:00:03]} 65. Bxa2 {[%clk 0:00:03]}  Rc2+ {[%clk 0:00:04]} 66. Kf3 {[%clk 0:00:04]}  Rxa2 {[%clk 0:00:04]} 67. Rxh6 {[%clk 0:00:04]}  Ne4 {[%clk 0:00:05]} 68. h4 {[%clk 0:00:04]}  Ra3+ {[%clk 0:00:05]} 69. Ke2 {[%clk 0:00:03]}  Nxg3+ {[%clk 0:00:05]} 70. Kf2 {[%clk 0:00:03]}  Ne4+ {[%clk 0:00:05]} 71. Kg2 {[%clk 0:00:03]}  g4 {[%clk 0:00:06]} 72. Rh8 {[%clk 0:00:03]}  Ra2+ {[%clk 0:00:06]} 73. Kg1 {[%clk 0:00:03]}  Kf4 {[%clk 0:00:07]} 74. h5 {[%clk 0:00:03]}  Ng5 {[%clk 0:00:07]} 75. h6 {[%clk 0:00:02]}  Nf3+ {[%clk 0:00:08]} 76. Kf1 {[%clk 0:00:02]}  Kg3 {[%clk 0:00:08]} 0-1


[Site "https://www.chess.com"]

[Event "Titled Tuesday Blitz November 2 2021"]
[White "Balabayeva, Xeniya"]
[Black "Kadam, Om Manish"]
[WhiteFideId "13719688"]
[BlackFideId "45076294"]
[WhiteElo "1965"]
[BlackElo "1729"]
[Result "1-0"]
[Round "09"]
[TimeControl "180+1"]
[Date "2021.11.02"]
[WhiteClock "0:00:30"]
[BlackClock "0:00:14"]

1. e4 {[%clk 0:03:00]}  c6 {[%clk 0:03:00]} 2. Nf3 {[%clk 0:02:57]}  d5 {[%clk 0:03:00]} 3. d3 {[%clk 0:02:55]}  dxe4 {[%clk 0:02:59]} 4. dxe4 {[%clk 0:02:55]}  Qxd1+ {[%clk 0:03:00]} 5. Kxd1 {[%clk 0:02:56]}  Bg4 {[%clk 0:03:01]} 6. Be2 {[%clk 0:02:50]}  Nd7 {[%clk 0:03:00]} 7. Ne1 {[%clk 0:02:47]}  Bxe2+ {[%clk 0:02:59]} 8. Kxe2 {[%clk 0:02:48]}  e5 {[%clk 0:02:59]} 9. f3 {[%clk 0:02:41]}  Ne7 {[%clk 0:02:57]} 10. Be3 {[%clk 0:02:35]}  f5 {[%clk 0:02:57]} 11. Nc3 {[%clk 0:02:30]}  f4 {[%clk 0:02:51]} 12. Bf2 {[%clk 0:02:28]}  Ng6 {[%clk 0:02:46]} 13. Nd3 {[%clk 0:02:25]}  O-O-O {[%clk 0:02:45]} 14. a4 {[%clk 0:02:22]}  a6 {[%clk 0:02:35]} 15. a5 {[%clk 0:02:20]}  Bd6 {[%clk 0:02:35]} 16. Rhd1 {[%clk 0:02:16]}  Bc7 {[%clk 0:02:36]} 17. b4 {[%clk 0:02:10]}  h5 {[%clk 0:02:33]} 18. Na4 {[%clk 0:02:08]}  Bd6 {[%clk 0:02:13]} 19. Rab1 {[%clk 0:02:06]}  Ngf8 {[%clk 0:02:10]} 20. c4 {[%clk 0:02:01]}  Ne6 {[%clk 0:02:08]} 21. b5 {[%clk 0:01:55]}  Kc7 {[%clk 0:01:45]} 22. bxa6 {[%clk 0:01:20]}  bxa6 {[%clk 0:01:44]} 23. c5 {[%clk 0:01:20]}  Be7 {[%clk 0:01:37]} 24. Rdc1 {[%clk 0:01:07]}  Bf6 {[%clk 0:01:22]} 25. Nb6 {[%clk 0:00:59]}  Ndf8 {[%clk 0:01:22]} 26. Nb4 {[%clk 0:00:56]}  Kb7 {[%clk 0:01:12]} 27. Nc4 {[%clk 0:00:52]}  Nd4+ {[%clk 0:00:20]} 28. Bxd4 {[%clk 0:00:50]}  Rxd4 {[%clk 0:00:21]} 29. Nc2+ {[%clk 0:00:47]}  Kc7 {[%clk 0:00:20]} 30. Nxd4 {[%clk 0:00:47]}  exd4 {[%clk 0:00:21]} 31. Nd6 {[%clk 0:00:42]}  Ne6 {[%clk 0:00:20]} 32. Rb7+ {[%clk 0:00:41]}  Kd8 {[%clk 0:00:20]} 33. Ra7 {[%clk 0:00:34]}  Rh7 {[%clk 0:00:19]} 34. Rb1 {[%clk 0:00:34]}  Nc7 {[%clk 0:00:17]} 35. Rb8+ {[%clk 0:00:33]}  Kd7 {[%clk 0:00:17]} 36. Ne8 {[%clk 0:00:30]}  Be5 {[%clk 0:00:16]} 37. Nxc7 {[%clk 0:00:30]}  Bxc7 {[%clk 0:00:15]} 38. Rbb7 {[%clk 0:00:30]}  d3+ {[%clk 0:00:14]} 1-0


[Site "https://www.chess.com"]